bitfinex/quotes_ETHUSD_20250913
["timestamp","ask_amount","ask_price","bid_price","bid_amount"]
[1757757802816,104.03778872,4726.9,4726.8,2.1394]
[1757757803623,103.24578872,4726.9,4726.8,2.1394]
[1757757803824,101.08589153,4726.9,4726.8,2.1394]
[1757757805213,101.08589153,4726.9,4726.8,1.6706]
[1757757805410,101.87789153,4726.9,4726.8,1.6706]
[1757757805731,101.87789153,4726.9,4726.8,0.3123]
[1757757806302,104.03778872,4726.9,4726.8,0.3123]
[1757757806703,104.03778872,4726.9,4726.8,1.6706]
[1757757807644,101.08589153,4726.9,4726.8,2.1394]
[1757757808498,101.08589153,4726.9,4726.8,8.6804]
[1757757811136,101.19149153,4726.9,4726.8,8.6804]
[1757757812470,101.19149153,4726.9,4726.8,38.6804]
[1757757817153,101.19149153,4726.9,4726.8,38.6774]
[1757757819053,101.19149153,4726.9,4726.8,34.6706]
[1757757819287,101.19149153,4726.9,4726.8,38.2076]
[1757757819459,101.19149153,4726.9,4726.8,38.2066]
[1757757819661,101.19149153,4726.9,4726.8,3.3123]
[1757757819877,101.19149153,4726.9,4726.8,6.537]
[1757757821249,101.19149153,4726.9,4726.8,6.8483]
[1757757824198,101.19149153,4726.9,4726.8,8.2066]
[1757757824400,101.19149153,4726.9,4726.8,6.8483]
[1757757825158,101.19149153,4726.9,4726.8,6.537]
[1757757825585,101.48559153,4726.9,4726.8,3.001]
[1757757825773,103.20619153,4726.9,4726.8,6.535]
[1757757826401,105.36608872,4726.9,4726.8,3.001]
[1757757826580,105.36608872,4726.9,4726.8,6.535]
[1757757827097,104.09608872,4726.9,4726.8,6.535]
[1757757827487,101.19149153,4726.9,4726.8,6.8478]
[1757757828707,101.19149153,4726.9,4726.8,8.1852]
[1757757828895,101.08589153,4726.9,4726.8,8.6502]
[1757757829367,101.08589153,4726.9,4726.8,38.6502]
[1757757830066,101.08589153,4726.9,4726.8,35.1162]
[1757757830315,101.08589153,4726.9,4726.8,38.6502]
[1757757830520,101.08589153,4726.9,4726.8,35.1162]
[1757757830817,101.08589153,4726.9,4726.8,38.6502]
[1757757831594,101.08589153,4726.9,4726.8,35.1162]
[1757757831783,101.08589153,4726.9,4726.8,33.3138]
[1757757831983,101.08589153,4726.9,4726.8,36.8478]
[1757757832386,101.08589153,4726.9,4726.8,6.8478]
[1757757832585,101.08589153,4726.9,4726.8,8.6502]
[1757757833035,101.08589153,4726.9,4726.8,38.6502]
[1757757833789,101.08589153,4726.9,4726.8,36.8478]
[1757757834010,101.08589153,4726.9,4726.8,36.534]
[1757757834723,101.38009153,4726.9,4726.8,33.001]
[1757757835022,101.38009153,4726.9,4726.8,6.534]
[1757757835023,101.83119153,4726.9,4726.8,6.534]
[1757757835828,101.38009153,4726.9,4726.8,6.534]
[1757757837385,101.38009153,4726.9,4726.8,3.001]
[1757757837584,101.38009153,4726.9,4726.8,6.534]
[1757757840001,101.08589153,4726.9,4726.8,6.534]
[1757757841026,101.08589153,4726.9,4726.8,6.822]
[1757757841342,101.08589153,4726.9,4726.8,8.6244]
[1757757841494,101.08589153,4726.9,4726.8,6.822]
[1757757842938,101.83119153,4726.9,4726.8,6.532]
[1757757843095,101.08589153,4726.9,4726.8,6.82]
[1757757843497,101.38009153,4726.9,4726.8,6.532]
[1757757843939,101.08589153,4726.9,4726.8,6.532]
[1757757844598,101.38009153,4726.9,4726.8,6.532]
[1757757845935,101.83119153,4726.9,4726.8,6.532]
[1757757846245,105.31548872,4726.9,4726.8,6.53]
[1757757846815,105.31548872,4726.9,4726.8,3.001]
[1757757847015,105.31548872,4726.9,4726.8,6.53]
[1757757847461,105.31548872,4726.9,4726.8,6.531]
[1757757847837,105.31548872,4726.9,4726.8,3.001]
[1757757848031,105.31548872,4726.9,4726.8,6.53]
[1757757848946,105.31548872,4726.9,4726.8,3.53]
[1757757849248,106.10748872,4726.9,4726.8,0.001]
[1757757849550,106.10748872,4726.9,4726.8,3.532]
[1757757849922,106.10748872,4726.9,4726.8,0.001]
[1757757856361,105.65638872,4726.9,4726.8,0.001]
[1757757856676,106.12658872,4726.9,4726.8,0.001]
[1757757858694,106.12658872,4726.9,4726.8,3.3036]
[1757757858695,103.24578872,4726.9,4726.8,3.3036]
[1757757858995,101.08589153,4726.9,4726.8,3.3036]
[1757757860394,101.37769153,4726.9,4726.8,3.001]
[1757757860586,103.14789153,4726.9,4726.8,3.001]
[1757757861091,103.14789153,4726.9,4726.8,0.001]
[1757757861299,105.30778872,4726.9,4726.8,3.53]
[1757757862514,103.53758872,4726.9,4726.8,3.53]
[1757757862670,103.53758872,4726.9,4726.8,6.53]
[1757757862872,104.00778872,4726.9,4726.8,6.53]
[1757757863091,105.30778872,4726.9,4726.8,6.53]
[1757757864980,105.30778872,4726.9,4726.8,3.001]
[1757757865219,105.30778872,4726.9,4726.8,0.001]
[1757757865220,106.09978872,4726.9,4726.8,0.001]
[1757757866409,109.62778872,4726.9,4726.8,0.001]
[1757757866615,106.09978872,4726.9,4726.8,0.001]
[1757757867111,109.62778872,4726.9,4726.8,0.001]
[1757757871094,111.74334013,4726.9,4726.8,0.001]
[1757757871414,109.62778872,4726.9,4726.8,0.001]
[1757757871575,112.37807202,4726.9,4726.8,0.001]
[1757757872606,110.26252061,4726.9,4726.8,0.001]
[1757757872820,112.37807202,4726.9,4726.8,0.001]
[1757757873731,110.26252061,4726.9,4726.8,0.001]
[1757757874040,112.37807202,4726.9,4726.8,0.001]
[1757757876339,109.79232061,4726.9,4726.8,0.001]
[1757757876636,110.26252061,4726.9,4726.8,0.001]
[1757757876842,109.79232061,4726.9,4726.8,0.001]
[1757757877030,107.40852061,4726.9,4726.8,0.001]
[1757757877343,103.24578872,4726.9,4726.8,1.9868]
[1757757877648,101.08589153,4726.9,4726.8,1.9868]
[1757757884260,101.08589153,4726.9,4726.8,6.6098]
[1757757886056,101.08589153,4726.9,4726.8,8.4546]
[1757757887467,101.08589153,4726.9,4726.8,9.7137]
[1757757887883,101.08589153,4726.9,4726.8,8.4546]
[1757757888695,101.08589153,4726.9,4726.8,10.1143]
[1757757889550,101.08589153,4726.9,4726.8,8.4546]
[1757757890791,101.08589153,4726.9,4726.8,4.9266]
[1757757890977,101.08589153,4726.9,4726.8,8.4546]
[1757757891163,101.08589153,4726.9,4726.8,10.1143]
[1757757892582,101.08589153,4726.9,4726.8,9.6558]
[1757757893092,101.08589153,4726.9,4726.8,8.4546]
[1757757898105,101.08589153,4726.9,4726.8,9.6558]
[1757757898287,101.08589153,4726.9,4726.8,8.4546]
[1757757899190,101.08589153,4726.9,4726.8,8.152]
[1757757899702,101.39679153,4726.9,4726.8,4.624]
[1757757899998,103.14519153,4726.9,4726.8,8.151]
[1757757900302,104.25859106,4726.9,4726.8,8.151]
[1757757900509,104.25859106,4726.9,4726.8,5.151]
[1757757900675,104.25859106,4726.9,4726.8,8.151]
[1757757901713,104.57819106,4726.9,4726.8,3.001]
[1757757901865,105.05059106,4726.9,4726.8,3.001]
[1757757902066,105.05059106,4726.9,4726.8,0.001]
[1757757904460,103.30219106,4726.9,4726.8,0.001]
[1757757904687,105.05059106,4726.9,4726.8,0.001]
[1757757905170,108.57759106,4726.9,4726.8,0.001]
[1757757906115,110.69314247,4726.9,4726.8,0.001]
[1757757906481,108.57759106,4726.9,4726.8,0.001]
[1757757906997,110.69314247,4726.9,4726.8,0.001]
[1757757908682,108.57759106,4726.9,4726.8,0.001]
[1757757909171,110.69314247,4726.9,4726.8,0.001]
[1757757909371,108.57759106,4726.9,4726.8,0.001]
[1757757910312,110.69314247,4726.9,4726.8,0.001]
[1757757910515,108.57759106,4726.9,4726.8,0.001]
[1757757910688,109.11259106,4726.9,4726.8,0.001]
[1757757911393,109.11359106,4726.9,4726.8,0.001]
[1757757911594,103.04519106,4726.9,4726.8,0.001]
[1757757911791,106.03819106,4726.9,4726.8,0.001]
[1757757912122,106.83019106,4726.9,4726.8,0.001]
[1757757912938,107.30259106,4726.9,4726.8,0.001]
[1757757915538,108.54089106,4726.9,4726.8,0.001]
[1757757916530,108.62552323,4726.9,4726.8,0.001]
[1757757916829,110.74107464,4726.9,4726.8,0.001]
[1757757917927,108.62552323,4726.9,4726.8,0.001]
[1757757918332,110.74107464,4726.9,4726.8,0.001]
[1757757924144,108.62552323,4726.9,4726.8,0.001]
[1757757925124,110.74107464,4726.9,4726.8,0.001]
[1757757926633,108.62552323,4726.9,4726.8,0.001]
[1757757926823,110.74107464,4726.9,4726.8,0.001]
[1757757927148,108.62552323,4726.9,4726.8,0.001]
[1757757927655,112.96607464,4726.9,4726.8,0.001]
[1757757930464,110.85052323,4726.9,4726.8,0.001]
[1757757930762,112.96607464,4726.9,4726.8,0.001]
[1757757946473,111.72777464,4726.9,4726.8,0.001]
[1757757946670,103.07592323,4726.9,4726.8,0.3152]
[1757757946994,106.60392323,4726.9,4726.8,1.98]
[1757757947906,108.71947464,4726.9,4726.8,1.98]
[1757757948091,108.71947464,4726.9,4726.8,0.3152]
[1757757948994,108.71947464,4726.9,4726.8,0.001]
[1757757948995,110.70917464,4726.9,4726.8,0.001]
[1757757949192,109.46217464,4726.9,4726.8,0.001]
[1757757949577,109.02167464,4726.9,4726.8,0.001]
[1757757949996,109.48907464,4726.9,4726.8,0.001]
[1757757951426,109.02167464,4726.9,4726.8,0.001]
[1757757954025,105.49367464,4726.9,4726.8,0.001]
[1757757954327,110.64047464,4726.9,4726.8,0.001]
[1757757957637,112.86547464,4726.9,4726.8,0.001]
[1757757963283,2.225,4726.7,4725.8,0.001]
[1757757963460,8.43684616,4725.9,4725.8,0.001]
[1757757963625,13.88534616,4725.9,4725.8,0.001]
[1757757963820,15.9615327,4725.9,4725.8,0.001]
[1757757964071,17.91100857,4725.9,4725.8,0.001]
[1757757965330,17.45462203,4725.9,4725.8,0.001]
[1757757965827,17.91031592,4725.9,4725.8,0.001]
[1757757966562,17.45462203,4725.9,4725.8,0.001]
[1757757968023,16.98722203,4725.9,4725.8,0.001]
[1757757968456,17.45462203,4725.9,4725.8,0.001]
[1757757969045,10.61777493,4725.9,4725.8,0.001]
[1757757969246,12.99737493,4725.9,4725.8,0.001]
[1757757970341,9.46537493,4725.9,4725.8,0.001]
[1757757970526,12.99737493,4725.9,4725.8,0.001]
[1757757971622,9.46537493,4725.9,4725.8,0.001]
[1757757971827,12.99637493,4725.9,4725.8,0.001]
[1757757972559,6.48047493,4725.9,4725.8,0.2865]
[1757757972889,5.23866675,4725.9,4725.8,1.8895]
[1757757973653,1.70766675,4725.9,4725.8,1.8895]
[1757757974041,5.155,4725.9,4725.8,1.8895]
[1757757974465,5.947,4725.9,4725.8,1.8895]
[1757757977088,2.415,4725.9,4725.8,1.8895]
[1757757977298,0.792,4725.9,4725.8,1.8895]
[1757757977598,4.323,4725.9,4725.8,1.8895]
[1757757978298,0.792,4725.9,4725.8,1.8895]
[1757757978468,4.324,4725.9,4725.8,1.8895]
[1757757982881,4.326,4725.9,4725.8,1.8895]
[1757757983396,4.97018234,4725.9,4725.8,1.8895]
[1757757983997,1.43818234,4725.9,4725.8,1.8895]
[1757757984196,4.324,4725.9,4725.8,1.8895]
[1757757985584,4.324,4725.9,4725.8,1.4395]
[1757757985793,4.324,4725.9,4725.8,0.2865]
[1757757986710,4.324,4725.9,4725.8,1.9157]
[1757757987377,4.324,4725.9,4725.8,1.478]
[1757757988400,4.96798257,4725.9,4725.8,1.478]
[1757757991228,4.96798257,4725.9,4725.8,0.2865]
[1757757993096,5.26508257,4725.9,4725.8,0.001]
[1757757994710,1.73508257,4725.9,4725.8,0.001]
[1757757994908,4.322,4725.9,4725.8,1.4796]
[1757757995418,0.794,4725.9,4725.8,1.4796]
[1757757995611,0.794,4725.9,4725.8,1.9173]
[1757757995933,4.322,4725.9,4725.8,1.9173]
[1757757996715,0.794,4725.9,4725.8,1.9173]
[1757757997243,0.794,4725.9,4725.8,1.4796]
[1757757997449,0.794,4725.9,4725.8,1.9173]
[1757758003841,0.002,4725.9,4725.8,1.9173]
[1757758004387,0.002,4725.9,4725.8,1.93846043]
[1757758004693,0.002,4725.9,4725.8,8.46546043]
[1757758004856,0.002,4725.9,4725.8,8.4443]
[1757758005052,0.002,4725.9,4725.8,38.4443]
[1757758019914,0.002,4725.9,4725.8,39.2363]
[1757758020127,0.002,4725.9,4725.8,39.4475]
[1757758020535,0.002,4725.9,4725.8,39.3419]
[1757758022534,0.002,4725.9,4725.8,35.8149]
[1757758022751,0.002,4725.9,4725.8,39.3409]
[1757758025663,0.002,4725.9,4725.8,40.72682179]
[1757758026047,0.002,4725.9,4725.8,37.20082179]
[1757758026253,0.002,4725.9,4725.8,40.72682179]
[1757758026455,0.002,4725.9,4725.8,13.35708509]
[1757758026631,0.002,4725.9,4725.8,12.35708509]
[1757758026852,0.002,4725.9,4725.8,39.52420636]
[1757758027055,0.002,4725.9,4725.8,40.52420636]
[1757758027555,0.002,4725.9,4725.8,43.15379172]
[1757758028794,0.002,4725.9,4725.8,39.52420636]
[1757758028971,0.002,4725.9,4725.8,40.52420636]
[1757758029172,0.002,4725.9,4725.8,43.15379172]
[1757758029696,0.002,4725.9,4725.8,40.52420636]
[1757758030491,0.002,4725.9,4725.8,40.62980636]
[1757758032895,0.002,4725.9,4725.8,40.4465]
[1757758033663,0.002,4725.9,4725.8,43.07608536]
[1757758034064,0.002,4725.9,4725.8,40.4465]
[1757758035386,0.002,4725.9,4725.8,40.4455]
[1757758038929,0.002,4725.9,4725.8,34.5852]
[1757758039218,0.002,4725.9,4725.8,9.5534]
[1757758039417,0.002,4725.9,4725.8,39.5534]
[1757758039631,0.002,4725.9,4725.8,40.3454]
[1757758039802,0.002,4725.9,4725.8,36.8214]
[1757758040003,0.002,4725.9,4725.8,40.3454]
[1757758040686,0.002,4725.9,4725.8,36.8214]
[1757758040887,0.002,4725.9,4725.8,40.3454]
[1757758042923,0.002,4725.9,4725.8,39.3454]
[1757758043131,0.002,4725.9,4725.8,40.3454]
[1757758043932,0.002,4725.9,4725.8,39.3454]
[1757758044139,0.002,4725.9,4725.8,8.7097]
[1757758044337,0.3062,4725.9,4725.8,3.8986]
[1757758044648,0.3062,4725.9,4725.8,37.4226]
[1757758044815,0.002,4725.9,4725.8,37.4226]
[1757758045011,0.002,4725.9,4725.8,37.7354]
[1757758047543,0.002,4725.9,4725.8,40.36498536]
[1757758047740,0.002,4725.9,4725.8,40.57638536]
[1757758047920,0.002,4725.9,4725.8,40.36498536]
[1757758048316,0.002,4725.9,4725.8,37.7354]
[1757758048932,0.002,4725.9,4725.8,37.841]
[1757758049515,0.002,4725.9,4725.8,37.5282]
[1757758050034,0.3062,4725.9,4725.8,37.5282]
[1757758050541,0.002,4725.9,4725.8,37.5282]
[1757758050946,0.3062,4725.9,4725.8,37.5282]
[1757758052150,0.002,4725.9,4725.8,37.5282]
[1757758054128,0.002,4725.9,4725.8,37.841]
[1757758057368,0.002,4725.9,4725.8,7.841]
[1757758057560,0.002,4725.9,4725.8,37.841]
[1757758058776,0.002,4725.9,4725.8,37.5282]
[1757758059074,0.002,4725.9,4725.8,41.28852591]
[1757758059640,0.3062,4725.9,4725.8,41.28852591]
[1757758060438,1.447,4725.9,4725.8,37.76452591]
[1757758060642,1.889,4725.9,4725.8,41.28852591]
[1757758061278,1.889,4725.9,4725.8,37.5282]
[1757758062843,0.002,4725.9,4725.8,37.5282]
[1757758063746,0.002,4725.9,4725.8,39.455]
[1757758063954,0.002,4725.9,4725.8,39.65761543]
[1757758064179,0.002,4725.9,4725.8,39.84092179]
[1757758065910,0.002,4725.9,4725.8,39.63830636]
[1757758067203,0.002,4725.9,4725.8,38.02430636]
[1757758067366,0.002,4725.9,4725.8,37.71150636]
[1757758067813,0.3085,4725.9,4725.8,37.71150636]
[1757758067983,0.002,4725.9,4725.8,38.01170636]
[1757758070692,0.002,4725.9,4725.8,37.71150636]
[1757758071078,0.3108,4725.9,4725.8,37.71150636]
[1757758071409,1.9207,4725.9,4725.8,37.5272]
[1757758072421,1.9207,4725.9,4725.8,34.0042]
[1757758072715,1.9207,4725.9,4725.8,37.5272]
[1757758075753,1.9207,4725.9,4725.8,7.5272]
[1757758076021,1.9207,4725.9,4725.8,37.5272]
[1757758076716,1.9207,4725.9,4725.8,36.7352]
[1757758080675,0.002,4725.9,4725.8,37.8245]
[1757758081427,0.002,4725.9,4725.8,37.5272]
[1757758083329,0.002,4725.9,4725.8,37.8245]
[1757758084173,0.002,4725.9,4725.8,39.59920636]
[1757758084377,0.00078488,4725.9,4725.8,42.6096502]
[1757758084676,0.002,4726.4,4726.3,1.792]
[1757758084977,0.002,4726.4,4726.3,38.70092179]
[1757758085132,0.002,4726.4,4726.3,38.99822179]
[1757758085337,0.002,4726.4,4726.3,43.33956321]
[1757758088087,0.002,4726.4,4726.3,42.13694778]
[1757758088297,0.002,4726.4,4726.3,36.0512278]
[1757758088489,0.002,4726.4,4726.3,39.4297278]
[1757758088646,0.002,4726.4,4726.3,38.4297278]
[1757758088852,0.3108,4726.4,4726.3,37.94912144]
[1757758089181,0.3108,4726.4,4726.3,38.24642144]
[1757758089182,0.002,4726.4,4726.3,38.24642144]
[1757758089385,0.002,4726.4,4726.3,36.83782144]
[1757758089589,0.002,4726.4,4726.3,42.95364142]
[1757758089888,0.002,4726.4,4726.3,43.13694778]
[1757758090286,0.002,4726.4,4726.3,43.35839306]
[1757758090451,101.08589153,4726.9,4726.7,0.792]
[1757758090785,101.08589153,4726.9,4726.8,40.8257]
[1757758090982,101.08589153,4726.9,4726.8,10.8257]
[1757758091370,101.08589153,4726.9,4726.8,40.8257]
[1757758091580,101.08589153,4726.9,4726.8,40.3788]
[1757758091777,101.08589153,4726.9,4726.8,39.2343]
[1757758092571,101.08589153,4726.9,4726.8,39.86839866]
[1757758093770,101.08589153,4726.9,4726.8,41.01289866]
[1757758093961,101.08589153,4726.9,4726.8,41.45979866]
[1757758094395,101.08589153,4726.9,4726.8,41.56539866]
[1757758097283,101.08589153,4726.9,4726.8,41.11849866]
[1757758097801,101.08589153,4726.9,4726.8,39.97399866]
[1757758100299,101.08589153,4726.9,4726.8,45.04299866]
[1757758102297,101.08589153,4726.9,4726.8,15.04299866]
[1757758102924,101.08589153,4726.9,4726.8,45.04299866]
[1757758106010,102.98249153,4726.9,4726.8,41.11709866]
[1757758106228,102.98249153,4726.9,4726.8,43.84709866]
[1757758106838,102.98249153,4726.9,4726.8,44.63909866]
[1757758112007,101.08589153,4726.9,4726.8,44.63909866]
[1757758112498,101.08589153,4726.9,4726.8,14.63909866]
[1757758112703,101.08589153,4726.9,4726.8,44.63909866]
[1757758113301,101.38239153,4726.9,4726.8,44.63909866]
[1757758115036,101.08589153,4726.9,4726.8,44.63909866]
[1757758115240,101.08589153,4726.9,4726.8,44.92599866]
[1757758115540,101.08589153,4726.9,4726.8,45.16504085]
[1757758116037,101.08589153,4726.9,4726.8,46.67784085]
[1757758116203,101.08589153,4726.9,4726.8,46.78344085]
[1757758116638,101.08589153,4726.9,4726.8,16.78344085]
[1757758116841,101.08589153,4726.9,4726.8,46.78344085]
[1757758117646,101.08589153,4726.9,4726.8,16.78344085]
[1757758117849,101.08589153,4726.9,4726.8,46.34484085]
[1757758118048,95.3841977,4726.9,4726.8,46.96674721]
[1757758119242,95.3841977,4726.9,4726.8,49.08234338]
[1757758119876,95.3841977,4726.9,4726.8,46.96674721]
[1757758120072,95.3841977,4726.9,4726.8,49.08234338]
[1757758120273,83.08888953,4726.9,4726.8,49.29364338]
[1757758120476,78.84888953,4726.9,4726.8,49.29364338]
[1757758120641,78.84888953,4726.9,4726.8,50.29364338]
[1757758120841,78.84888953,4726.9,4726.8,49.29364338]
[1757758121077,70.36888953,4726.9,4726.8,50.29364338]
[1757758121276,20.912,4726.9,4726.8,17.85547071]
[1757758121576,63.74889,4728.9,4727.2,1.24731646]
[1757758121739,63.74889,4728.9,4728.2,0.792]
[1757758121945,63.74889,4728.9,4728.4,0.792]
[1757758122277,0.2965,4728.5,4728.3,0.792]
[1757758122472,0.2965,4728.5,4728.4,30.792]
[1757758122663,0.2965,4728.5,4728.4,34.313]
[1757758122976,63.74889,4728.9,4728.5,0.792]
[1757758123142,63.74889,4728.9,4728.7,3.792]
[1757758123342,0.2965,4728.8,4728.7,0.792]
[1757758123679,0.2965,4728.8,4728.7,42.381]
[1757758124080,0.2965,4728.8,4728.7,42.65206308]
[1757758125853,0.2965,4728.8,4728.7,43.28592326]
[1757758126249,63.74889,4728.9,4728.8,3.792]
[1757758126450,63.74889,4728.9,4728.8,34.06306308]
[1757758127185,63.74889,4728.9,4728.8,34.37696308]
[1757758127346,63.74889,4728.9,4728.8,35.95936308]
[1757758127542,63.74889,4728.9,4728.8,38.07406448]
[1757758128488,58.26889,4728.9,4728.8,39.25737084]
[1757758128681,54.02889,4728.9,4728.8,39.25737084]
[1757758129069,54.02889,4728.9,4728.8,42.77737084]
[1757758130766,54.02889,4728.9,4728.8,46.527451]
[1757758131549,54.02889,4728.9,4728.8,46.633051]
[1757758131752,54.02889,4728.9,4728.8,45.633051]
[1757758131982,54.02889,4728.9,4728.8,46.633051]
[1757758132367,54.02889,4728.9,4728.8,42.88297084]
[1757758132884,36.94612199,4728.9,4728.8,42.88297084]
[1757758133083,36.94612199,4728.9,4728.8,39.36297084]
[1757758133282,36.94612199,4728.9,4728.8,42.88297084]
[1757758133482,30.58612199,4728.9,4728.8,42.88297084]
[1757758133684,30.58612199,4728.9,4728.8,38.36297084]
[1757758133855,30.58612199,4728.9,4728.8,42.88297084]
[1757758134688,30.58812199,4728.9,4728.8,42.88297084]
[1757758135278,30.58812199,4728.9,4728.8,57.28397084]
[1757758135480,30.58812199,4728.9,4728.8,54.76397084]
[1757758135652,30.58812199,4728.9,4728.8,57.28297084]
[1757758136687,30.58812199,4728.9,4728.8,53.76397084]
[1757758136848,30.58812199,4728.9,4728.8,54.76397084]
[1757758137053,30.58812199,4728.9,4728.8,58.28297084]
[1757758140452,30.58812199,4728.9,4728.8,58.91659673]
[1757758142579,19.98812199,4728.9,4728.8,58.91659673]
[1757758142786,19.98812199,4728.9,4728.8,50.70049533]
[1757758142985,19.98812199,4728.9,4728.8,53.90559533]
[1757758143284,19.98812199,4728.9,4728.8,53.72228897]
[1757758143492,7.26812199,4728.9,4728.8,53.72228897]
[1757758143655,1.21662199,4728.9,4728.8,50.20328897]
[1757758143850,0.3085,4728.9,4728.8,52.93028897]
[1757758144288,1.7528,4728.9,4728.8,49.41128897]
[1757758144456,1.9645,4728.9,4728.8,52.93028897]
[1757758144954,1.7528,4728.9,4728.8,52.93028897]
[1757758145991,1.7528,4728.9,4728.8,53.72228897]
[1757758146158,1.7528,4728.9,4728.8,50.72228897]
[1757758146358,1.9645,4728.9,4728.8,50.20328897]
[1757758146559,1.9645,4728.9,4728.8,53.45122589]
[1757758146988,1.9645,4728.9,4728.8,53.73645563]
[1757758147652,1.9645,4728.9,4728.8,50.21745563]
[1757758147896,1.9645,4728.9,4728.8,53.73645563]
[1757758148189,1.9645,4728.9,4728.8,23.73645563]
[1757758148594,1.7528,4728.9,4728.8,53.73645563]
[1757758148886,1.4463,4729.4,4728.9,3.792]
[1757758149086,1.4463,4729.4,4728.8,53.73645563]
[1757758149087,1.4443,4729.3,4729.1,3.792]
[1757758149388,1.4443,4729.3,4728.8,16.03462589]
[1757758149389,1.4443,4729.3,4729.2,37.59622974]
[1757758149691,1.4443,4729.3,4729.2,37.70182974]
[1757758149892,1.5433,4729.3,4729.2,38.33561627]
[1757758150271,1.9624,4729.3,4729.2,38.33561627]
[1757758152195,1.9624,4729.3,4729.2,34.81661627]
[1757758152395,1.9624,4729.3,4729.2,38.33561627]
[1757758153282,0.099,4729.3,4729.2,38.33561627]
[1757758153690,0.101,4729.3,4729.2,38.33561627]
[1757758155216,0.002,4729.3,4729.2,38.33561627]
[1757758155989,0.002,4729.3,4729.2,38.63941627]
[1757758156196,0.002,4729.3,4729.2,40.57001627]
[1757758157406,0.002,4729.3,4729.2,39.06961627]
[1757758157591,0.002,4729.3,4729.2,38.63941627]
[1757758158734,0.002,4729.3,4729.2,40.57001627]
[1757758158909,0.002,4729.3,4729.2,40.76665596]
[1757758159225,0.002,4729.3,4729.2,42.8811785]
[1757758160420,0.002,4729.3,4729.2,46.63125866]
[1757758161913,0.002,4729.3,4729.2,42.8811785]
[1757758162113,0.002,4729.3,4729.2,46.64669582]
[1757758162317,0.002,4729.3,4729.2,44.53217328]
[1757758162636,0.002,4729.3,4729.2,42.29677328]
[1757758162836,0.002,4729.3,4729.2,39.26525596]
[1757758163240,0.002,4729.3,4729.2,42.8801785]
[1757758163446,0.002,4729.3,4729.2,12.8801785]
[1757758163620,0.002,4729.3,4729.2,42.8801785]
[1757758165257,2.45192824,4730.4,4729.7,0.792]
[1757758165457,2.45192824,4730.4,4730.1,0.792]
[1757758165659,0.099,4730.2,4730.1,0.792]
[1757758165839,0.099,4730.2,4730.1,33.792]
[1757758166044,2.0745,4730.2,4730.1,37.31]
[1757758166225,2.0745,4730.2,4730.1,37.94367943]
[1757758167039,1.6554,4730.2,4730.1,37.94367943]
[1757758167239,0.099,4730.2,4730.1,37.94367943]
[1757758168640,1.6554,4730.2,4730.1,37.94367943]
[1757758168846,2.0745,4730.2,4730.1,37.94367943]
[1757758169328,1.6554,4730.2,4730.1,37.94367943]
[1757758170068,1.6554,4730.2,4730.1,43.00867943]
[1757758171169,1.6554,4730.2,4730.1,43.29390917]
[1757758171568,1.57373201,4730.2,4730.1,43.29390917]
[1757758171773,0.01733201,4730.2,4730.1,43.29390917]
[1757758172630,2.45192824,4730.4,4730.2,3.0]
[1757758172871,47.97,4730.9,4730.2,3.0]
[1757758172872,32.68767539,4730.9,4730.5,0.792]
[1757758173180,30.57711572,4730.9,4730.7,3.792]
[1757758173378,30.57711572,4730.9,4730.8,40.49947875]
[1757758173541,30.57711572,4730.9,4730.8,41.29547875]
[1757758173736,29.28215614,4730.9,4730.8,37.42367875]
[1757758173957,29.58705614,4730.9,4730.8,42.61267875]
[1757758174271,29.23215614,4730.9,4730.8,39.15190689]
[1757758174875,29.23215614,4730.9,4730.8,39.09987079]
[1757758175251,29.23215614,4730.9,4730.8,39.40367079]
[1757758175660,29.23215614,4730.9,4730.8,9.82574079]
[1757758176173,29.23215614,4730.9,4730.8,39.40367079]
[1757758176558,29.23215614,4730.9,4730.8,41.51747817]
[1757758176759,23.53611778,4730.9,4730.8,43.44807817]
[1757758177075,23.53611778,4730.9,4730.8,40.90407079]
[1757758177289,23.53611778,4730.9,4730.8,39.40367079]
[1757758178357,23.53611778,4730.9,4730.8,39.10687079]
[1757758179069,23.53611778,4730.9,4730.8,34.883613]
[1757758180115,23.53611778,4730.9,4730.8,29.198958]
[1757758180312,23.53611778,4730.9,4730.8,29.43570348]
[1757758180909,23.53611778,4730.9,4730.8,29.73950348]
[1757758181115,23.53611778,4730.9,4730.8,35.64531086]
[1757758181413,23.53611778,4730.9,4730.8,39.21731086]
[1757758181913,23.53611778,4730.9,4730.8,39.44809444]
[1757758182124,16.99009084,4730.9,4730.8,37.03048706]
[1757758182273,16.99009084,4730.9,4730.8,37.33428706]
[1757758182477,16.99009084,4730.9,4730.8,41.37869444]
[1757758182682,16.99009084,4730.9,4730.8,40.94849444]
[1757758182880,16.99009084,4730.9,4730.8,37.03048706]
[1757758183099,16.99009084,4730.9,4730.8,39.44809444]
[1757758183300,16.99009084,4730.9,4730.8,40.08150628]
[1757758183508,16.99009084,4730.9,4730.8,42.01210628]
[1757758184271,16.99009084,4730.9,4730.8,41.58190628]
[1757758184606,16.99009084,4730.9,4730.8,37.43111532]
[1757758184816,17.29499084,4730.9,4730.8,37.43111532]
[1757758185209,17.29499084,4730.9,4730.8,37.53671532]
[1757758185513,16.99009084,4730.9,4730.8,39.6505227]
[1757758185916,16.99009084,4730.9,4730.8,37.53671532]
[1757758187087,17.30099084,4730.9,4730.8,37.53671532]
[1757758188220,17.30099084,4730.9,4730.8,36.40403387]
[1757758188546,8.4e-07,4730.9,4730.8,23.52955125]
[1757758188708,0.002,4731.2,4730.9,2.90575534]
[1757758188907,0.002,4731.2,4731.1,0.792]
[1757758189106,0.002,4731.2,4731.1,11.380868]
[1757758189418,0.3013,4731.2,4731.1,14.960868]